Cogmind - Beta 16.1 @@@ ROGUE MODE // 2026.04.13 @ 15:23:56 Player: dorusv Result: Destroyed by 4X-17L(R) with Subdweller Machine Gun Performance ------------- Evolutions (0) 0 Regions Visited (3) 600 Robots Destroyed (14) 70 Value Destroyed (148) 148 Prototype IDs (0) 0 Alien Tech Used (0) 0 Bonus (0) 0 TOTAL SCORE: 818 Bonus ------- None Cogmind --------- Core Integrity 0/250 Matter 297/300 Energy 99/100 System Corruption 10% Temperature Cool (0) Movement Core (50) Location -10/Subcaves Parts ------- > --- POWER (1) -------- (None) > --- PROPULSION (2) --- (None) > --- UTILITY (2) ------ (None) > --- WEAPON (2) ------- Light Assault Rifle > --- INVENTORY (5) ---- Signal Interpreter Medium Laser Assault Rifle Light Assault Rifle Peak State ------------ > --- POWER ------------ Light Ion Engine > --- PROPULSION ------- Wheel Compact Wheel > --- UTILITY ---------- Improved Terrain Scanner Seismic Detector > --- WEAPON ----------- Assault Rifle Light Assault Rifle > --- INVENTORY -------- Light Ion Engine Medium Laser [Rating: 9] Favorites ----------- Power Light Ion Engine Engine Light Ion Engine Propulsion Flight Unit Wheel Wheel Flight Unit Flight Unit Utility Seismic Detector Device Seismic Detector Weapon Light Assault Rifle Ballistic Gun Light Assault Rifle Special Weapon Mining Laser Build | -11 -10 -10 -10 ------- Run | Yrd Mat Min Sub Slots Evolved . | . . . . Power . | . . . . Propulsion . | . . . . Utility . | . . . . Weapon . | . . . . Parts Attached 13 | 7 . 5 1 Power 2 | 1 . 1 . Engine 2 | 1 . 1 . Core . | . . . . Reactor . | . . . . Propulsion 4 | 2 . 2 . Treads . | . . . . Leg . | . . . . Wheel 2 | 2 . . . Hover . | . . . . Flight 2 | . . 2 . Utility 2 | 2 . . . Device 2 | 2 . . . Storage . | . . . . Processor . | . . . . Hackware . | . . . . Protection . | . . . . Artifact . | . . . . Weapon 5 | 2 . 2 1 Energy Gun . | . . . . Energy Cannon . | . . . . Ballistic Gun 3 | 2 . 1 . Ballistic Cannon . | . . . . Launcher . | . . . . Special Weapon 2 | . . 1 1 Impact Weapon . | . . . . Slashing Weapon . | . . . . Piercing Weapon . | . . . . Special Melee Weapon . | . . . . Unidentified Prototypes . | . . . . Parts Lost 9 | . . 3 6 Power 2 | . . 1 1 Propulsion 3 | . . 1 2 Utility 2 | . . . 2 Weapon 2 | . . 1 1 Highest Loss Streak 4 | . . 3 4 To Critical Strikes . | . . . . Average Backups 3 | 1 2 3 4 Power . | . 1 . . Propulsion . | . . . . Utility . | . . 1 1 Weapon 2 | . 1 1 3 Tool/Special . | . . . . Unused Backups 2 | . . . 2 Power . | . . . . Propulsion . | . . . . Utility 1 | . . . 1 Weapon 1 | . . . 1 Tool/Special . | . . . . Average Slot Usage (%) 93 | . 100 94 91 Engine 12 | . 14 13 10 Wheel 9 | . 28 14 . Flight 14 | . . 8 25 Device 27 | . 28 28 27 Ballistic Gun 24 | . 28 27 18 Special Weapon 3 | . . . 9 Peak Build Rating 9 | 9 9 9 9 Average Rating 8 | 6 9 8 8 On Entrance 6 | . 9 9 9 Avg Prop Armor Cover (%) 3 | . . 3 . Naked Turns . | . . . . Heaviest Build 8 | 8 8 8 7 Greatest Support 26 | 26 26 26 8 Greatest Overweight (x) 2 | . . 2 . Average Overweight (x) . | . . . . Largest Inventory Capacity 5 | 5 5 5 5 Average Capacity 5 | 5 5 5 5 Most Carried 5 | 2 3 5 5 Average Carried 3 | 1 2 3 4 Final Capacity 5 | 5 5 5 5 Final Carried 4 | 2 3 4 4 Class Distribution -------------------- 65% | Mutant 34% | Scavenger-Mutant Dominant Class ---------------- Mutant | -10/Materials Mutant | -10/Mines Scavenger-Mutant | -10/Subcaves Resources | -11 -10 -10 -10 ----------- Run | Yrd Mat Min Sub Matter Collected 500 | 322 . 98 80 Remotely . | . . . . Salvage Created 318 | 158 . 96 64 Parts 27 | 12 . 12 3 Haulers Intercepted . | . . . . Recyclers Shooed . | . . . . Parts Field Recycled . | . . . . Retrieved Matter . | . . . . Parts Self-Destructed 11 | . . . 11 Prevented . | . . . . Parts Restored . | . . . . Kills | -11 -10 -10 -10 ------- Run | Yrd Mat Min Sub Combat Hostiles Destroyed 9 | . . 6 3 Guns 8 | . . 6 2 Cannons 1 | . . . 1 Classes Destroyed 5 | 3 . 1 1 Worker 1 | 1 . . . Tunneler 3 | 2 . 1 . Recycler 1 | 1 . . . Swarmer 8 | . . 6 2 Subdweller 1 | . . . 1 Best Kill Streak 4 | 2 . 4 2 Combat Bots Only 3 | . . 3 2 Max Kills in Single Turn 1 | 1 . 1 1 Gunslinging . | . . . . Exploded . | . . . . Melee . | . . . . Uniques/NPCs Destroyed . | . . . . Combat | -11 -10 -10 -10 -------- Run | Yrd Mat Min Sub Hostile Shots Fired 57 | . . 20 37 Missed 23 | . . 8 15 Hits 34 | . . 12 22 Projectile 34 | . . 12 22 Critical Strikes 1 | . . 1 . Damage Taken 715 | . . 410 305 Core 270 | . . 162 108 Absorbed by Shields . | . . . . Core Remaining (%) 100 | 100 . . . Volleys Fired 86 | 13 . 18 55 Largest 2 | 2 . 2 2 Hottest 120 | 40 . 120 120 Shots Fired 137 | 26 . 29 82 Gun 117 | 26 . 26 65 Cannon . | . . . . Launcher . | . . . . Special 20 | . . 3 17 Kinetic 117 | 26 . 26 65 Thermal 20 | . . 3 17 Explosive . | . . . . Electromagnetic . | . . . . Robot Hit Streak 5 | 4 . 4 5 Robot Miss Streak 7 | 4 . 4 7 Penetration Max . | . . . . Secondary Targets . | . . . . Shots Hit Robots 41 | 9 . 11 21 Core Hits 20 | 5 . 9 6 Critical Kills . | . . . . Critical Parts Destroyed . | . . . . Critical Strikes . | . . . . Melee Attacks . | . . . . Impact . | . . . . Slashing . | . . . . Piercing . | . . . . Sneak Attacks . | . . . . Combat Hostiles . | . . . . Follow-up Attacks . | . . . . Damage Inflicted 356 | 108 . 141 107 Guns 319 | 108 . 128 83 Cannons . | . . . . Explosions . | . . . . Melee . | . . . . Ramming 13 | . . 13 . Kinetic 319 | 108 . 128 83 Thermal 24 | . . . 24 Explosive . | . . . . Electromagnetic . | . . . . Impact . | . . . . Slashing . | . . . . Piercing . | . . . . Highest Corruption 10 | . . 10 10 Average Corruption 10 | . . 10 10 Corruption Purged . | . . . . Corruption Blocked . | . . . . Effects 34 | . . 14 20 Message Errors 9 | . . 2 7 Matter Fused 6 | . . 4 2 Heat Flow Errors 4 | . . 1 3 Energy Discharges 2 | . . 2 . Data Loss (minor) 7 | . . 4 3 Misfires 2 | . . 1 1 Alerts 1 | . . . 1 Weapon Failures 3 | . . . 3 Overload Shots . | . . . . Overflow Damage . | . . . . Projectiles . | . . . . Explosions . | . . . . Melee . | . . . . Knockbacks . | . . . . Impact . | . . . . Kinetic . | . . . . Secondary . | . . . . Self-Inflicted Damage 5 | . . 5 . Shots . | . . . . Rammed 7 | . . 7 . Targets Rammed 7 | . . 7 . Kicked . | . . . . Crushed . | . . . . Highest Temperature 113 | . . 113 111 Average Temperature 36 | . . 26 55 Received Heat Transfer 24 | . . . 24 Siege Activations . | . . . . Martial Activations . | . . . . Shielding Activations . | . . . . Robots Disrupted . | . . . . Combat Hostiles . | . . . . Robots Corrupted . | . . . . Combat Hostiles . | . . . . Parts Fried . | . . . . Impact Corruptions . | . . . . Robots Melted . | . . . . Combat Hostiles . | . . . . Parts Melted . | . . . . Heat Transferred 50 | . . . 50 Parts Sabotaged . | . . . . Parts Stolen . | . . . . Parts Stripped . | . . . . Power Chain Reactions . | . . . . Alert | -11 -10 -10 -10 ------- Run | Yrd Mat Min Sub Maximum Alert Level . | . . . . Low Security (%) 100 | 100 100 100 . Level 1 . | . . . . Level 2 . | . . . . Level 3 . | . . . . Level 4 . | . . . . Level 5 . | . . . . High Security . | . . . . Max Security . | . . . . Peak Influence 70 | 5 3 70 . Initial 3 | . 3 . . Average 7 | 1 1 8 . Influence Increases 217 | 20 . 147 50 Destroy 0b10 Robot/C 160 | . . 120 40 Destroy 0b10 Robot/NC 25 | 20 . 5 . Destroy Leader 30 | . . 20 10 Destroy Structure 2 | . . 2 . Influence Decreases 217 | 15 5 89 108 Entered New Map 33 | . 2 . 31 Time Decay 183 | 15 3 88 77 Lost Part 1 | . . 1 . Squads Dispatched 1 | . 1 . . Investigation . | . . . . Extermination . | . . . . Reinforcement 1 | . 1 . . Assault . | . . . . Garrison . | . . . . Intercept . | . . . . Searches Triggered . | . . . . Construction Impeded . | . . . . Haulers Reinforced . | . . . . Active Scanning Responses . | . . . . Cargo Convoy Interrupts . | . . . . Stealth | -11 -10 -10 -10 --------- Run | Yrd Mat Min Sub Distress Signals . | . . . . Communications Jammed . | . . . . Distress Signals . | . . . . Times Spotted 13 | . 1 6 6 Peak Tracking Total 3 | . 1 3 3 Tactical Retreats . | . . . . Traps | -11 -10 -10 -10 ------- Run | Yrd Mat Min Sub Traps Triggered . | . . . . Indirectly . | . . . . Trap Hack Attempts . | . . . . Triggered . | . . . . Disarmed . | . . . . Reprogrammed . | . . . . Reused . | . . . . Traps Extracted . | . . . . Installed . | . . . . Triggered . | . . . . Machines | -11 -10 -10 -10 ---------- Run | Yrd Mat Min Sub Machines Disabled . | . . . . Max in Single Turn . | . . . . Machines Repaired . | . . . . Machines Dismantled . | . . . . Machines Sabotaged . | . . . . Overloaded Fab Kills . | . . . . Hacking | -11 -10 -10 -10 --------- Run | Yrd Mat Min Sub Machines Accessed 1 | . . . 1 Terminals . | . . . . Fabricators . | . . . . Repair Stations . | . . . . Recycling Units . | . . . . Scanalyzers . | . . . . Garrison Access . | . . . . Total Hacks 4 | . . . 4 Successful 4 | . . . 4 Failed . | . . . . Catastrophic . | . . . . Database Lockouts . | . . . . Manual . | . . . . Terminals . | . . . . Fabricators . | . . . . Repair Stations . | . . . . Recycling Units . | . . . . Scanalyzers . | . . . . Garrison Access . | . . . . Terminal Hacks 4 | . . . 4 Record 4 | . . . 4 Fabricator Hacks . | . . . . Repair Station Hacks . | . . . . Recycling Unit Hacks . | . . . . Scanalyzer . | . . . . Garrison Access Hacks . | . . . . Unauthorized Hacks . | . . . . Terminals . | . . . . Fabricators . | . . . . Repair Stations . | . . . . Recycling Units . | . . . . Scanalyzers . | . . . . Garrison Access . | . . . . Data Cores Recovered . | . . . . Used . | . . . . Hacking Detections . | . . . . Full Trace Events . | . . . . Feedback Events . | . . . . Feedback Blocked . | . . . . Robot Schematics Acquired . | . . . . Robots Built . | . . . . Authchips . | . . . . Time . | . . . . Total Robot Build Rating . | . . . . Part Schematics Acquired . | . . . . Parts Built . | . . . . Authchips . | . . . . Time . | . . . . Total Part Build Rating . | . . . . Part Studies Acquired . | . . . . Parts Repaired . | . . . . Time . | . . . . Parts Recycled . | . . . . Recycled Matter . | . . . . Retrieved Matter . | . . . . Retrieved Components . | . . . . Parts Scanalyzed . | . . . . Part Schematics Acquired . | . . . . Parts Damaged . | . . . . Bothacking | -11 -10 -10 -10 ------------ Run | Yrd Mat Min Sub Used RIF Installer . | . . . . Robots Hacked . | . . . . Non-combat . | . . . . Combat . | . . . . Robot Hacks Applied . | . . . . Relay Couplers Released . | . . . . Fabnet Peak Effective % . | . . . . Robots Rewired . | . . . . Allies Hacked . | . . . . Hacks Repelled . | . . . . Allies | -11 -10 -10 -10 -------- Run | Yrd Mat Min Sub Total Allies 1 | . . 1 . Largest Group 1 | . . 1 . Highest-Rated Group 31 | . . 31 . Highest-Rated Ally 31 | . . 31 . Total Orders . | . . . . Ally Attacks . | . . . . Total Damage . | . . . . Kills . | . . . . Allies Corrupted . | . . . . Allies Melted . | . . . . Intel | -11 -10 -10 -10 ------- Run | Yrd Mat Min Sub Active Infowar (turns) 1549 | 81 34 900 534 Terrain 1541 | 81 34 900 526 Seismic 1546 | 78 34 900 534 Robot Analysis Total . | . . . . Derelict Logs Recovered 4 | . . 3 1 Drone Launches . | . . . . Drone Recoveries . | . . . . Exploration | -11 -10 -10 -10 ------------- Run | Yrd Mat Min Sub Turns Passed 1610 | 130 34 900 546 Spaces Moved 1364 | 91 37 840 396 Core 190 | 2 . 187 1 Treads . | . . . . Legs . | . . . . Wheels 719 | 89 37 593 . Hover . | . . . . Flight 455 | . . 60 395 Fastest Speed 37 | 50 90 37 37 Average Speed 79 | 89 90 98 37 Slowest Speed 150 | 100 90 150 50 Overloaded Moves . | . . . . Propulsion Burnouts . | . . . . Robots Hopped 1 | . . . 1 Potential Cave-ins . | . . . . Cave-ins Triggered 1 | . . 1 . Exploration Rate (%) 30 | 4 8 95 16 Regions Visited 3 Branch Regions 2 Pre-discovered Areas 4 | . . 2 2 Known Exits Taken . | . . . . Unknown Exits Taken 3 | 1 1 1 . Scrap Searched 2 | . . 2 . Spaces Dug 3 | . . 3 . Terrain Destroyed 3 | . . 3 . Melee . | . . . . Projectile 3 | . . 3 . AOE . | . . . . Terrain Rammed . | . . . . Walls Destroyed . | . . . . Machines Disabled . | . . . . Actions | -11 -10 -10 -10 --------- Run | Yrd Mat Min Sub Total 1720 | 112 37 882 689 Wait 240 | . . 3 237 Move 1359 | 90 36 839 394 Hop 1 | . . . 1 Pick Up 7 | 2 1 4 . Fast Attach 9 | 7 . 2 . Attach 6 | . . 5 1 Detach 3 | . . 2 1 Swap . | . . . . Drop 2 | . . 2 . Fire 86 | 13 . 18 55 Melee . | . . . . Ram 7 | . . 7 . Kick . | . . . . Crush . | . . . . Escape Stasis . | . . . . Rewire . | . . . . Trap . | . . . . Miscellaneous . | . . . . Route ------- -11/Scrapyard -10/Materials -10/Mines (discovered 3 exits: [*Mat x2] / *Sub) -10/Subcaves (discovered 1 exit: [*Mat]) History --------- Turn | Location | Event 25 | -11/Scrapyard | Discovered new exit (range 16) 131 | -11/Scrapyard | Entered Materials 131 | -10/Materials | Discovered new exit (range 14) 165 | -10/Materials | Entered Mines 188 | -10/Mines | Discovered new exit (range 12) 254 | -10/Mines | Learned location of Mines (-9) 278 | -10/Mines | Discovered new exit (range 11) 303 | -10/Mines | Build established: Mutant 345 | -10/Mines | Learned location of Recycling (-7) 411 | -10/Mines | Discovered new exit (range 10) 666 | -10/Mines | Learned Materials terminal intel 699 | -10/Mines | Received a Mining Laser from a helpful Derelict 737 | -10/Mines | Crushed by falling debris 737 | -10/Mines | System corruption reached 10% 760 | -10/Mines | Core integrity fell below 50% 768 | -10/Mines | Lost 3 parts (1p1n1w) 1065 | -10/Mines | Entered Subcaves 1068 | -10/Subcaves | Learned location of Zion (-7) 1070 | -10/Subcaves | Discovered new exit (range 15) 1190 | -10/Subcaves | Visited Clippyterm 1191 | -10/Subcaves | Learned Research security intel 1191 | -10/Subcaves | Learned Factory stockpile data 1199 | -10/Subcaves | Met a Zionite searching for "candidates" 1338 | -10/Subcaves | Build established: Scavenger-Mutant 1514 | -10/Subcaves | Core integrity fell below 20% 1611 | -10/Subcaves | Destroyed by 4X-17L(R) with Subdweller Machine Gun Last Messages --------------- 01280_ NSWWWLXMI0|PGHL4H0:A8X,C I&CEOHB BDBW#O 01315_ 3DCPO7VZZCZO%%VNPP